bitfinex-derivatives/quotes_BTCF0:USTF0_20260107
["timestamp","ask_amount","ask_price","bid_price","bid_amount"]
[1767753240707,0.09739733,92817.0,92796.0,0.010782]
[1767753240708,0.09739733,92811.0,92796.0,0.09168]
[1767753241009,0.01078,92808.0,92797.0,0.01458916]
[1767753241206,0.010781,92802.0,92797.0,0.09168]
[1767753241410,0.10817833,92802.0,92797.0,0.09168]
[1767753241611,0.010781,92802.0,92797.0,0.09168]
[1767753241808,0.010781,92805.0,92797.0,0.09168]
[1767753242516,0.01078,92808.0,92797.0,0.09168]
[1767753242813,0.010781,92806.0,92797.0,0.09168]
[1767753243316,0.010781,92804.0,92797.0,0.09168]
[1767753243814,0.010781,92804.0,92790.0,0.010782]
[1767753244014,0.010781,92804.0,92791.0,0.09168]
[1767753244809,0.09993956,92809.0,92791.0,0.09168]
[1767753245013,0.11072056,92805.0,92792.0,0.09168]
[1767753245315,0.09993956,92805.0,92793.0,0.09168]
[1767753245702,0.010782,92795.0,92781.0,0.01652235]
[1767753245902,0.09993956,92801.0,92785.0,0.010783]
[1767753246416,0.01078,92810.0,92798.0,0.01652235]
[1767753246917,0.01078,92808.0,92798.0,0.01652235]
[1767753247100,0.01078,92808.0,92796.0,0.18790045]
[1767753247700,0.010781,92806.0,92796.0,0.09168]
[1767753248713,0.01078,92809.0,92796.0,0.09168]
[1767753250012,0.01078,92807.0,92796.0,0.09168]
[1767753250716,0.01078,92810.0,92799.0,0.01652235]
[1767753250917,0.00215474,92819.0,92804.0,0.01652235]
[1767753251414,0.01078,92816.0,92804.0,0.01652235]
[1767753251616,0.010779,92817.0,92804.0,0.01652235]
[1767753251818,0.00215474,92819.0,92805.0,0.010781]
[1767753252019,0.010779,92818.0,92805.0,0.010781]
[1767753252618,0.01293374,92819.0,92805.0,0.010781]
[1767753253121,0.010779,92817.0,92802.0,0.010781]
[1767753253315,0.010779,92817.0,92804.0,0.02730335]
[1767753253617,0.00215474,92819.0,92806.0,0.01652235]
[1767753253820,0.010779,92818.0,92806.0,0.01652235]
[1767753255812,0.01078,92813.0,92802.0,0.01652235]
[1767753256020,0.00215474,92819.0,92802.0,0.01652235]
[1767753256726,0.010779,92816.0,92803.0,0.010781]
[1767753257529,0.010779,92816.0,92803.0,0.02730335]
[1767753258023,0.01293374,92819.0,92805.0,0.010781]
[1767753258212,0.01078,92814.0,92803.0,0.01652235]
[1767753258414,0.01078,92812.0,92803.0,0.01652235]
[1767753259221,0.00215474,92819.0,92803.0,0.01652235]
[1767753259619,0.01078,92810.0,92803.0,0.01652235]
[1767753259819,0.00215474,92819.0,92803.0,0.01652235]
[1767753259820,0.01078,92813.0,92803.0,0.01652235]
[1767753260118,0.00215474,92819.0,92803.0,0.01652235]
[1767753260618,0.010779,92818.0,92803.0,0.01652235]
[1767753260814,0.00215474,92819.0,92803.0,0.01652235]
[1767753261016,0.01078,92814.0,92803.0,0.01652235]
[1767753261215,0.00215474,92819.0,92803.0,0.01652235]
[1767753261525,0.01078,92812.0,92799.0,0.1235238]
[1767753261818,0.11598348,92818.0,92799.0,0.01652235]
[1767753262025,0.01078,92809.0,92800.0,0.09168]
[1767753262318,0.01078,92814.0,92802.0,0.010781]
[1767753262622,0.01078,92814.0,92801.0,0.010781]
[1767753262918,0.01078,92812.0,92800.0,0.09168]
[1767753264021,0.01078,92814.0,92801.0,0.010781]
[1767753266114,0.010781,92800.0,92783.0,0.01652235]
[1767753266417,0.09993956,92804.0,92785.0,0.01652235]
[1767753266614,0.09993956,92804.0,92790.0,0.010782]
[1767753267527,0.010781,92803.0,92790.0,0.010782]
[1767753268022,0.11598348,92803.0,92780.0,0.1127428]
[1767753268216,0.11598348,92802.0,92782.0,0.01652235]
[1767753268617,0.01604392,92801.0,92783.0,0.010783]
[1767753268920,0.010782,92798.0,92785.0,0.010783]
[1767753269322,0.010782,92798.0,92786.0,0.09168]
[1767753269726,0.010782,92798.0,92787.0,0.09168]
[1767753270216,0.010782,92798.0,92785.0,0.010783]
[1767753270424,0.010782,92798.0,92786.0,0.09168]
[1767753270616,0.010782,92798.0,92785.0,0.010783]
[1767753270818,0.11072056,92801.0,92787.0,0.010783]
[1767753271018,0.11072056,92801.0,92788.0,0.010783]
[1767753271415,0.010781,92801.0,92788.0,0.010783]
[1767753272325,0.010781,92804.0,92790.0,0.010782]
[1767753272827,0.010781,92803.0,92790.0,0.010782]
[1767753275319,0.010781,92803.0,92791.0,0.010782]
[1767753275519,0.010781,92805.0,92792.0,0.010782]
[1767753275829,0.09993956,92807.0,92797.0,0.010782]
[1767753276019,0.09993956,92807.0,92796.0,0.010782]
[1767753279831,0.09993956,92807.0,92793.0,0.010782]
[1767753280334,0.09993956,92807.0,92794.0,0.010782]
[1767753281239,0.09993956,92807.0,92790.0,0.01540161]
[1767753281529,0.11072056,92807.0,92792.0,0.010782]
[1767753282327,0.09993956,92807.0,92794.0,0.010782]
[1767753282533,0.09993956,92807.0,92790.0,0.01540161]
[1767753282534,0.010781,92806.0,92792.0,0.010782]
[1767753283335,0.09993956,92807.0,92792.0,0.010782]
[1767753283823,0.11072056,92807.0,92792.0,0.010782]
[1767753284024,0.12535239,92807.0,92792.0,0.010782]
[1767753285229,0.09993956,92807.0,92795.0,0.010782]
[1767753285426,0.10501399,92806.0,92795.0,0.010782]
[1767753285627,0.010781,92804.0,92790.0,0.010782]
[1767753286325,0.10501399,92805.0,92793.0,0.010782]
[1767753286524,0.01078,92810.0,92796.0,0.010782]
[1767753286925,0.01463183,92809.0,92796.0,0.010782]
[1767753287134,0.10501399,92808.0,92796.0,0.010782]
[1767753287320,0.09038216,92808.0,92797.0,0.010782]
[1767753287526,0.01078,92812.0,92797.0,0.010782]
[1767753288036,0.10501399,92811.0,92797.0,0.010782]
[1767753288239,0.10501399,92811.0,92798.0,0.010781]
[1767753288736,0.11579399,92809.0,92796.0,0.010782]
[1767753290238,0.10501399,92809.0,92799.0,0.010781]
[1767753290531,0.09038216,92809.0,92800.0,0.010781]
[1767753292129,0.09038216,92809.0,92797.0,0.010782]
[1767753292738,0.10116216,92809.0,92797.0,0.010782]
[1767753294324,0.09038216,92809.0,92791.0,0.01540161]
[1767753294531,0.10501399,92809.0,92796.0,0.010782]
[1767753296437,0.10501399,92809.0,92797.0,0.010782]
[1767753297935,0.02541183,92808.0,92794.0,0.010782]
[1767753298136,0.01463183,92808.0,92790.0,0.10303835]
[1767753299234,0.11175728,92808.0,92790.0,0.10303835]
[1767753300429,0.09712545,92803.0,92787.0,0.09168]
[1767753300629,0.01283736,92807.0,92790.0,0.10303835]
[1767753300825,0.01283736,92807.0,92787.0,0.10517739]
[1767753301031,0.01283736,92786.0,92767.0,0.09647573]
[1767753301236,0.09712545,92786.0,92770.0,0.10303835]
[1767753301535,0.01315601,92778.0,92767.0,0.09168]
[1767753301840,0.01315601,92782.0,92770.0,0.010785]
[1767753302038,0.010783,92782.0,92770.0,0.10303835]
[1767753302227,0.01315601,92784.0,92769.0,0.010785]
[1767753302538,0.01315601,92784.0,92771.0,0.010785]
[1767753302741,0.01315601,92784.0,92767.0,0.09168]
[1767753302742,0.02393901,92784.0,92768.0,0.010785]
[1767753303347,0.5119108,92847.0,92759.0,1.4e-07]
[1767753303348,0.09170278,92761.0,92759.0,1.4e-07]
[1767753303635,0.4,92783.0,92741.0,0.010788]
[1767753303636,0.10485879,92753.0,92741.0,0.010788]
[1767753303838,0.01315601,92757.0,92740.0,0.10303835]
[1767753304336,0.01315601,92757.0,92736.0,0.01341248]
[1767753304337,0.01315601,92757.0,92739.0,0.010788]
[1767753304532,8.024e-05,92756.0,92739.0,0.010788]
[1767753304733,8.024e-05,92756.0,92741.0,0.010788]
[1767753305837,8.024e-05,92756.0,92743.0,0.010788]
[1767753307435,8.024e-05,92756.0,92742.0,0.01341248]
[1767753307731,8.024e-05,92756.0,92740.0,0.10303835]
[1767753308045,8.024e-05,92756.0,92743.0,0.010788]
[1767753308443,0.11572503,92756.0,92740.0,0.010788]
[1767753308631,0.10493903,92756.0,92744.0,0.010788]
[1767753310540,8.024e-05,92756.0,92740.0,0.01341248]
[1767753310740,8.024e-05,92756.0,92744.0,0.010788]
[1767753314136,8.024e-05,92756.0,92744.0,0.01341248]
[1767753314337,8.024e-05,92756.0,92742.0,0.01341248]
[1767753314845,8.024e-05,92756.0,92749.0,0.010787]
[1767753315147,8.024e-05,92756.0,92747.0,0.010787]
[1767753316145,0.01315601,92750.0,92736.0,0.010789]
[1767753316440,8.024e-05,92756.0,92738.0,0.01341248]
[1767753316441,0.09178302,92756.0,92738.0,0.01341248]
[1767753316645,8.024e-05,92756.0,92740.0,0.11645083]
[1767753316846,8.024e-05,92756.0,92740.0,0.01341248]
[1767753317040,8.024e-05,92756.0,92750.0,0.010787]
[1767753317242,8.024e-05,92756.0,92749.0,0.010787]
[1767753318546,8.024e-05,92756.0,92742.0,0.01341248]
[1767753319049,8.024e-05,92756.0,92750.0,0.010787]
[1767753319249,8.024e-05,92756.0,92752.0,0.010787]
[1767753319451,0.10248778,92766.0,92752.0,0.010787]
[1767753319750,0.10248778,92766.0,92748.0,0.01341248]
[1767753319751,0.102505,92765.0,92751.0,0.010787]
[1767753320335,0.09172,92765.0,92752.0,0.010787]
[1767753320548,0.102505,92765.0,92752.0,0.010787]
[1767753320746,0.09172,92765.0,92750.0,0.11645083]
[1767753320941,0.09172,92765.0,92751.0,0.01341248]
[1767753321350,0.09172,92765.0,92758.0,0.010786]
[1767753324550,0.10248778,92772.0,92764.0,0.010785]
[1767753324551,0.18342278,92772.0,92764.0,0.010785]
[1767753327455,0.12478616,92780.0,92754.0,0.01341248]
[1767753327456,0.09170278,92778.0,92767.0,0.010785]
[1767753327654,0.18342278,92778.0,92767.0,0.010785]
[1767753327856,0.19657879,92778.0,92763.0,0.010786]
[1767753328154,0.10485879,92776.0,92755.0,0.01341248]
[1767753328344,0.10485879,92765.0,92756.0,0.010786]
[1767753328845,0.01315601,92770.0,92756.0,0.010786]
[1767753329250,0.010785,92772.0,92758.0,0.010786]
[1767753329457,0.01315601,92769.0,92760.0,0.010786]
[1767753330756,0.10485879,92769.0,92759.0,0.010786]
[1767753331152,0.09170278,92769.0,92759.0,0.010786]
[1767753332353,0.09243685,92775.0,92768.0,0.010785]
[1767753332558,0.09243685,92775.0,92757.0,0.01242784]
[1767753332752,0.09243685,92775.0,92764.0,0.010785]
[1767753333254,0.10521975,92775.0,92764.0,0.010785]
[1767753333454,0.10521975,92775.0,92761.0,0.010786]
[1767753333865,0.10521975,92775.0,92754.0,0.12009517]
[1767753333866,0.10521975,92774.0,92760.0,0.010786]
[1767753334057,0.10521975,92771.0,92751.0,0.09172]
[1767753334255,0.010785,92770.0,92751.0,0.09172]
[1767753334460,0.10521975,92771.0,92757.0,0.010786]
[1767753335156,0.10521975,92771.0,92751.0,0.09172]
[1767753335157,0.10521975,92771.0,92753.0,0.010787]
[1767753335360,0.10521975,92771.0,92759.0,0.010786]
[1767753336073,0.10521975,92771.0,92760.0,0.010786]
[1767753336363,0.10521975,92771.0,92761.0,0.010786]
[1767753337756,0.10521975,92771.0,92752.0,0.01242784]
[1767753337955,0.10521975,92771.0,92760.0,0.010786]
[1767753339269,0.10322085,92777.0,92760.0,0.10303835]
[1767753339465,0.09243685,92777.0,92760.0,0.10303835]
[1767753340068,0.0127829,92786.0,92767.0,0.11546619]
[1767753340371,0.00215544,92789.0,92779.0,0.010784]
[1767753340864,0.00215544,92789.0,92776.0,0.010784]
[1767753341064,0.01293844,92789.0,92771.0,0.010785]
[1767753341262,0.01293844,92789.0,92773.0,0.010784]
[1767753341465,0.01293844,92789.0,92772.0,0.01242784]
[1767753342366,0.00215544,92789.0,92772.0,0.01242784]
[1767753342962,0.01293844,92789.0,92774.0,0.010784]
[1767753343161,0.01293844,92789.0,92772.0,0.01242784]
[1767753343162,0.00215544,92789.0,92776.0,0.02321184]
[1767753343356,0.00215544,92789.0,92776.0,0.01242784]
[1767753343757,0.00215544,92789.0,92775.0,0.010784]
[1767753344363,0.010783,92784.0,92771.0,0.09172]
[1767753344967,0.00215544,92789.0,92773.0,0.010784]
[1767753345468,0.010783,92788.0,92773.0,0.010784]
[1767753346260,0.10521975,92788.0,92771.0,0.09172]
[1767753346454,0.10521975,92788.0,92717.0,0.09601065]
[1767753346455,0.10521975,92780.0,92760.0,0.16361634]
[1767753346666,0.10521975,92777.0,92765.0,0.010785]
[1767753347071,0.10521975,92777.0,92762.0,0.010786]
[1767753347072,0.10322085,92777.0,92762.0,0.010786]
[1767753347662,0.010784,92777.0,92762.0,0.010786]
[1767753349368,0.010784,92777.0,92764.0,0.010785]
[1767753349569,0.010784,92778.0,92764.0,0.010785]
[1767753350274,0.10521975,92782.0,92761.0,0.11493384]
[1767753350571,0.10521975,92782.0,92761.0,0.10414784]
[1767753350771,0.010783,92788.0,92767.0,0.01242784]
[1767753350973,0.10521975,92785.0,92766.0,0.01242784]
[1767753351363,0.0127829,92784.0,92766.0,0.01242784]
[1767753351671,0.10321985,92785.0,92769.0,0.010785]
[1767753351872,0.010783,92783.0,92769.0,0.010785]
[1767753352875,0.09243685,92785.0,92769.0,0.010785]
[1767753353973,0.010783,92782.0,92767.0,0.010785]
[1767753354373,0.11600275,92785.0,92769.0,0.010785]
[1767753355467,0.0127829,92784.0,92769.0,0.010785]
[1767753356464,0.0127829,92784.0,92771.0,0.010785]
[1767753357372,0.0127829,92784.0,92773.0,0.010784]
[1767753357578,0.11600375,92780.0,92763.0,0.09168]
[1767753357970,0.0127829,92774.0,92762.0,0.010786]
[1767753358166,0.010784,92777.0,92763.0,0.09168]
[1767753358167,0.10521975,92772.0,92763.0,0.09168]
[1767753358368,0.09243685,92772.0,92763.0,0.09168]
[1767753358675,0.010784,92777.0,92763.0,0.102465]
[1767753358676,0.01168153,92776.0,92763.0,0.102465]
[1767753360283,0.01168153,92776.0,92763.0,0.09168]
[1767753360574,0.09453098,92777.0,92763.0,0.09168]
[1767753360779,0.09453098,92777.0,92766.0,0.010785]
[1767753361171,0.09453098,92782.0,92769.0,0.010785]
[1767753361371,0.10621251,92781.0,92769.0,0.010785]
[1767753362076,0.00215544,92789.0,92775.0,0.010784]
[1767753362278,0.010782,92794.0,92781.0,0.01152329]
[1767753362581,0.01111038,92800.0,92782.0,0.01152329]
[1767753362780,0.09168,92801.0,92782.0,0.01152329]
[1767753362982,0.10284455,92801.0,92782.0,0.01152329]
[1767753363278,0.10596191,92799.0,92780.0,0.010784]
[1767753363483,0.10596191,92788.0,92777.0,0.010784]
[1767753363685,0.10596191,92788.0,92772.0,0.09168]
[1767753363686,0.10596191,92788.0,92779.0,0.010784]
[1767753363982,0.01116455,92792.0,92779.0,0.010784]
[1767753364182,0.010782,92793.0,92779.0,0.010784]
[1767753364486,0.010782,92793.0,92778.0,0.010784]
[1767753365382,0.010782,92791.0,92778.0,0.010784]
[1767753365580,0.010783,92789.0,92775.0,0.010784]
[1767753365978,0.010782,92791.0,92777.0,0.010784]
[1767753366871,0.010782,92791.0,92774.0,0.01152329]
[1767753367070,0.09479736,92793.0,92778.0,0.010784]
[1767753367284,0.010782,92792.0,92778.0,0.010784]
[1767753367485,0.010782,92791.0,92775.0,0.010784]
[1767753367686,0.1026373,92801.0,92772.0,0.09168]
[1767753367687,0.10596191,92787.0,92772.0,0.102464]
[1767753367986,0.10596191,92787.0,92774.0,0.010784]
[1767753368183,0.10596191,92786.0,92771.0,0.010785]
[1767753368377,0.10596191,92781.0,92761.0,0.10486673]
[1767753368578,0.010784,92779.0,92765.0,0.010785]
[1767753368992,0.01116455,92775.0,92761.0,0.05789243]
[1767753369180,0.010783,92783.0,92761.0,0.010786]
[1767753369181,0.10596191,92773.0,92761.0,0.010786]
[1767753369488,0.09479736,92773.0,92761.0,0.010786]
[1767753369686,0.02194855,92777.0,92761.0,0.010786]
[1767753370383,0.01116455,92777.0,92765.0,0.010785]
[1767753370789,0.09479736,92778.0,92765.0,0.010785]
[1767753371879,0.010784,92777.0,92762.0,0.010786]
[1767753373889,0.09479736,92778.0,92759.0,0.01367943]
[1767753374590,0.10596191,92777.0,92759.0,0.00215614]
[1767753374788,0.01116455,92776.0,92759.0,0.00215614]
[1767753374990,0.10596191,92776.0,92759.0,0.00215614]
[1767753375185,0.10596191,92775.0,92759.0,0.00215614]
[1767753375386,0.010784,92773.0,92759.0,0.01294214]
[1767753376787,0.10596191,92775.0,92762.0,0.010786]
[1767753377094,0.10596191,92775.0,92764.0,0.010785]
[1767753377592,0.09479736,92775.0,92764.0,0.010785]
[1767753379794,0.010784,92779.0,92766.0,0.010785]
[1767753379992,0.010784,92778.0,92764.0,0.010785]
[1767753380580,0.010783,92789.0,92759.0,0.01367943]
[1767753380581,0.01116455,92774.0,92759.0,0.00215614]
[1767753380884,0.09168,92788.0,92761.0,0.01152329]
[1767753381192,0.09168,92787.0,92775.0,0.010784]
[1767753381387,0.102463,92786.0,92763.0,0.010786]
[1767753381582,0.010783,92784.0,92770.0,0.010785]
[1767753382695,0.09168,92785.0,92763.0,0.010786]
[1767753382993,0.01116455,92782.0,92772.0,0.010784]
[1767753383692,0.09479736,92783.0,92772.0,0.010784]
[1767753384393,0.09168,92785.0,92773.0,0.010784]
[1767753384691,0.01116455,92784.0,92773.0,0.010784]
[1767753384891,0.01116455,92784.0,92770.0,0.010785]
[1767753385088,0.010784,92781.0,92763.0,0.01152329]
[1767753385483,0.01116455,92782.0,92768.0,0.010785]
[1767753386492,0.01116455,92782.0,92769.0,0.010785]
[1767753387793,0.01116455,92782.0,92770.0,0.010785]
[1767753390593,0.010783,92781.0,92762.0,0.01152329]
[1767753390796,0.010783,92781.0,92763.0,0.01152329]
[1767753390996,0.010784,92780.0,92765.0,0.010785]
[1767753391295,0.010784,92778.0,92765.0,0.010785]
[1767753392993,0.010784,92778.0,92764.0,0.010785]
[1767753393291,0.010784,92780.0,92767.0,0.010785]
[1767753393498,0.10595253,92784.0,92767.0,0.010785]
[1767753393684,0.010784,92780.0,92765.0,0.010785]
[1767753394592,0.01115517,92783.0,92763.0,0.01189785]
[1767753394795,0.01115517,92783.0,92763.0,0.02268285]
[1767753395397,0.01115517,92783.0,92763.0,0.01189785]
[1767753395597,0.010784,92775.0,92763.0,0.01189785]
[1767753396197,0.010784,92779.0,92764.0,0.02268285]
[1767753397200,0.010784,92779.0,92765.0,0.010785]
[1767753397400,0.02193817,92783.0,92769.0,0.010785]
[1767753397698,0.010784,92780.0,92766.0,0.010785]
[1767753398400,0.010784,92780.0,92767.0,0.010785]
[1767753400897,0.010783,92782.0,92764.0,0.01189785]
[1767753401202,0.010783,92782.0,92765.0,0.01189785]
[1767753401701,0.10558036,92784.0,92770.0,0.010785]
[1767753402905,0.09168,92797.0,92778.0,0.01189785]
[1767753403206,0.09168,92797.0,92763.0,0.010786]
[1767753403207,0.10246,92809.0,92792.0,0.010782]
[1767753403502,0.10246,92809.0,92794.0,0.010782]
[1767753403688,0.10246,92809.0,92793.0,0.01189785]
[1767753404090,0.09168,92809.0,92795.0,0.01189785]
[1767753404290,0.09168,92816.0,92802.0,0.010781]
[1767753404489,0.00215474,92819.0,92806.0,0.010781]
[1767753404704,0.00215474,92819.0,92804.0,0.01189785]
[1767753405807,0.09481646,92818.0,92798.0,0.01189785]
[1767753405990,0.09481646,92818.0,92799.0,0.01189785]
[1767753406194,0.010779,92817.0,92799.0,0.01189785]
[1767753406396,0.010779,92817.0,92800.0,0.01189785]
[1767753406597,0.09481646,92818.0,92801.0,0.010781]
[1767753406798,0.10559546,92818.0,92801.0,0.010781]
[1767753407502,0.00215474,92819.0,92804.0,0.010781]
[1767753409307,0.00215474,92819.0,92802.0,0.01189785]
[1767753409807,0.00215474,92819.0,92806.0,0.01189785]
[1767753410102,0.00215474,92819.0,92807.0,0.01189785]
[1767753410708,0.01293374,92819.0,92807.0,0.01189785]
[1767753410914,0.01293374,92819.0,92806.0,0.09920263]
[1767753411594,0.01293374,92819.0,92805.0,0.01189785]
[1767753411803,0.01293374,92819.0,92802.0,0.010781]
[1767753412502,0.01293374,92819.0,92802.0,0.02267885]
[1767753413404,0.010779,92817.0,92802.0,0.01189785]
[1767753414106,0.00215474,92819.0,92802.0,0.01189785]
[1767753414300,0.00215474,92819.0,92803.0,0.010781]
[1767753414501,0.00215474,92819.0,92803.0,0.02267885]
[1767753414702,0.010779,92818.0,92804.0,0.01189785]
[1767753414901,0.010779,92816.0,92803.0,0.09920263]
[1767753415699,0.00215474,92819.0,92801.0,0.01189785]
[1767753415905,0.01078,92810.0,92802.0,0.09168]
[1767753416204,0.01078,92810.0,92801.0,0.09168]
[1767753417013,0.01078,92813.0,92801.0,0.09168]
[1767753418409,0.01078,92811.0,92801.0,0.09168]
[1767753420220,0.01078,92811.0,92800.0,0.10301012]
[1767753420415,0.01078,92811.0,92801.0,0.09168]
[1767753420717,0.01078,92811.0,92800.0,0.10301012]
[1767753420913,0.01078,92811.0,92801.0,0.09168]
[1767753421110,0.01078,92814.0,92801.0,0.102461]
[1767753421511,0.01078,92814.0,92801.0,0.010781]
[1767753421713,0.01078,92812.0,92800.0,0.10301012]
[1767753421907,0.01078,92812.0,92800.0,0.19469012]
[1767753422112,0.01078,92812.0,92800.0,0.10301012]
[1767753422312,0.01078,92812.0,92801.0,0.09168]
[1767753422501,0.00828,92812.0,92800.0,0.10301012]
[1767753422701,0.01106873,92810.0,92790.0,0.1969787]
[1767753422908,0.010782,92793.0,92785.0,0.09168]
[1767753423211,0.010782,92791.0,92785.0,0.09168]
[1767753423713,0.010782,92794.0,92785.0,0.09168]
[1767753424117,0.01106873,92801.0,92785.0,0.09168]
[1767753424320,0.010782,92794.0,92785.0,0.09168]
[1767753424509,0.010782,92797.0,92785.0,0.09168]
[1767753424711,0.010781,92802.0,92788.0,0.010783]
[1767753425016,0.01078,92808.0,92793.0,0.01150997]
[1767753425203,0.010779,92817.0,92804.0,0.01150997]
[1767753425409,0.102459,92818.0,92807.0,0.10301012]
[1767753425604,0.09168,92818.0,92807.0,0.10301012]
[1767753425809,0.01078,92815.0,92804.0,0.01150997]
[1767753426812,0.01106873,92817.0,92796.0,0.01150997]
[1767753427012,0.010781,92807.0,92797.0,0.09168]
[1767753427318,0.010781,92805.0,92797.0,0.09168]
[1767753427514,0.010781,92805.0,92795.0,0.01150997]
[1767753427718,0.010781,92805.0,92796.0,0.09168]
[1767753428718,0.010781,92805.0,92795.0,0.01150997]
[1767753428921,0.01078,92811.0,92796.0,0.010782]
[1767753429217,0.01078,92811.0,92798.0,0.010782]
[1767753430522,0.01078,92811.0,92796.0,0.10318997]
[1767753431020,0.09168,92818.0,92796.0,0.10318997]
[1767753431021,0.09168,92818.0,92802.0,0.01150997]
[1767753431316,0.010779,92817.0,92805.0,0.01150997]
[1767753431717,0.09168,92825.0,92811.0,0.10547855]
[1767753431915,0.010778,92832.0,92817.0,0.01150997]
[1767753432120,0.010778,92832.0,92820.0,0.10301012]
[1767753432322,0.09734436,92836.0,92820.0,0.10301012]
[1767753432516,0.10841309,92836.0,92817.0,0.01150997]
[1767753433218,0.10841309,92836.0,92816.0,0.09396858]
[1767753433723,0.010779,92823.0,92810.0,0.2886587]
[1767753433922,0.010779,92823.0,92810.0,0.30016867]
[1767753434125,0.010778,92829.0,92812.0,0.01150997]
[1767753434328,0.010778,92829.0,92813.0,0.01150997]
[1767753434925,0.10812236,92832.0,92813.0,0.01150997]
[1767753436226,0.010778,92830.0,92814.0,0.01078]
[1767753436616,0.09734436,92832.0,92814.0,0.01078]
[1767753436824,0.09734436,92832.0,92814.0,0.02228997]
[1767753437024,0.010778,92830.0,92814.0,0.01150997]
[1767753437815,0.10301012,92840.0,92810.0,0.09168]
[1767753437816,0.09168,92841.0,92822.0,0.01150997]
[1767753438025,0.01106873,92838.0,92820.0,0.10301012]
[1767753438325,0.010777,92834.0,92818.0,0.02228897]
[1767753438530,0.01106873,92837.0,92818.0,0.01150997]
[1767753438826,0.01106873,92837.0,92826.0,0.010778]
[1767753439023,0.010777,92836.0,92820.0,0.10301012]
[1767753439330,0.01106873,92835.0,92817.0,0.010779]
[1767753439624,0.01106873,92834.0,92817.0,0.010779]
[1767753439828,0.09734436,92835.0,92817.0,0.02228897]
[1767753440020,0.09734436,92835.0,92820.0,0.10301012]
[1767753440215,0.00215405,92849.0,92833.0,0.01150997]
[1767753440415,0.01106873,92853.0,92825.0,0.10301012]
[1767753440416,0.102415,92853.0,92839.0,0.10301012]
[1767753440720,0.010775,92851.0,92836.0,0.01150997]
[1767753441124,0.010776,92849.0,92832.0,0.01150997]
[1767753441431,0.010778,92830.0,92825.0,0.09164]
[1767753441618,0.010778,92830.0,92814.0,0.09164]
[1767753441818,0.010778,92828.0,92815.0,0.09164]
[1767753442219,0.010774,92859.0,92839.0,0.10547855]
[1767753442420,0.10270873,92860.0,92840.0,0.10301012]
[1767753442722,0.20005309,92860.0,92840.0,0.10301012]
[1767753442929,0.010775,92852.0,92839.0,0.10547855]
[1767753443230,0.010776,92850.0,92839.0,0.10547855]
[1767753443427,0.010776,92850.0,92839.0,0.09396858]
[1767753443928,0.010776,92848.0,92835.0,0.01150997]
[1767753444724,0.010775,92851.0,92837.0,0.01150997]
[1767753444925,0.010775,92851.0,92836.0,0.09396858]
[1767753445632,0.010776,92849.0,92836.0,0.09396858]
[1767753446330,0.010776,92847.0,92836.0,0.09396858]
[1767753447117,0.010776,92847.0,92836.0,0.10547855]
[1767753447322,0.010776,92850.0,92836.0,0.10547855]
[1767753448430,0.010775,92854.0,92841.0,0.10547855]
[1767753448633,0.010775,92854.0,92843.0,0.01150997]
[1767753449021,0.010775,92852.0,92843.0,0.01150997]
[1767753449230,0.09164,92860.0,92843.0,0.01150997]
[1767753449231,0.010776,92850.0,92843.0,0.01150997]
[1767753449631,0.010776,92850.0,92842.0,0.09396858]
[1767753450332,0.010776,92850.0,92842.0,0.10547855]
[1767753451634,0.19465012,92860.0,92842.0,0.10547855]
[1767753451635,0.010776,92848.0,92842.0,0.10547855]
[1767753452538,0.010775,92851.0,92842.0,0.10547855]
[1767753453527,0.010774,92859.0,92842.0,0.10547855]
[1767753454637,0.09164,92860.0,92842.0,0.10547855]
[1767753454839,0.010776,92849.0,92842.0,0.10547855]
[1767753455137,0.010775,92851.0,92842.0,0.10547855]
[1767753456236,0.010775,92851.0,92843.0,0.01300728]
[1767753456829,0.010776,92849.0,92843.0,0.01300728]
[1767753457031,0.010775,92851.0,92843.0,0.01300728]
[1767753457832,0.010776,92850.0,92843.0,0.01300728]
[1767753458832,0.010775,92858.0,92843.0,0.01300728]
[1767753460139,0.010776,92849.0,92843.0,0.01300728]
[1767753460532,0.010775,92857.0,92844.0,0.092205]
[1767753460732,0.010775,92857.0,92843.0,0.01300728]
[1767753460931,0.010776,92849.0,92843.0,0.01300728]
[1767753462038,0.01228428,92845.0,92825.0,0.092205]
[1767753462243,0.010777,92836.0,92825.0,0.092205]
[1767753462641,0.01228428,92847.0,92825.0,0.092205]
[1767753462838,0.010777,92835.0,92825.0,0.092205]
[1767753464244,0.010776,92845.0,92828.0,0.01300728]
[1767753464435,0.010777,92835.0,92828.0,0.01300728]
[1767753464636,0.010778,92833.0,92828.0,0.10521228]
[1767753464845,0.010778,92832.0,92824.0,0.01300728]
[1767753465341,0.01228428,92845.0,92822.0,0.09164]
[1767753465342,0.09355039,92845.0,92822.0,0.09164]
[1767753465545,0.010778,92825.0,92815.0,0.09164]
[1767753465745,0.010778,92825.0,92814.0,0.09164]
[1767753466142,0.010778,92825.0,92814.0,0.18797373]
[1767753466542,0.010778,92828.0,92815.0,0.09633373]
[1767753466848,0.010778,92826.0,92815.0,0.09633373]
[1767753467548,0.010778,92826.0,92818.0,0.01241199]
[1767753468045,0.010778,92825.0,92818.0,0.01241199]
[1767753468542,0.010778,92828.0,92817.0,0.09633373]
[1767753468744,0.010778,92828.0,92814.0,0.09164]
[1767753468745,0.010778,92831.0,92819.0,0.10874572]
[1767753468948,0.010777,92839.0,92820.0,0.01241199]
[1767753469243,0.010777,92839.0,92816.0,0.010779]
[1767753469244,0.09670891,92838.0,92815.0,0.11952572]
[1767753469456,0.010778,92827.0,92817.0,0.10874572]
[1767753470746,0.010778,92830.0,92820.0,0.01241199]
[1767753471046,0.010778,92828.0,92820.0,0.01241199]
[1767753472052,0.010778,92826.0,92819.0,0.09633373]
[1767753473655,0.010777,92837.0,92819.0,0.09633373]
[1767753473656,0.010778,92825.0,92819.0,0.09633373]
[1767753473839,0.010778,92825.0,92814.0,0.20038572]
[1767753474046,0.02388153,92833.0,92814.0,0.20038572]
[1767753474351,0.010777,92833.0,92816.0,0.01241199]
[1767753474650,0.010777,92833.0,92816.0,0.10874572]
[1767753474840,0.010777,92833.0,92817.0,0.10874572]
[1767753475242,0.010778,92826.0,92817.0,0.10874572]
[1767753475754,0.010778,92826.0,92810.0,0.06053285]